[Event "Reykjavik Open 2022"]
[Site "Reykjavik"]
[Date "2022.04.09"]
[Round "5.20"]
[White "Large, Peter G"]
[Black "Romanishin, Oleg M"]
[Result "1/2-1/2"]
[ECO "C92"]
[WhiteElo "2335"]
[BlackElo "2415"]
[Annotator "RC"]
[PlyCount "43"]
[EventDate "2022.04.06"]
[EventCountry "ISL"]
[SourceTitle "playchess.com"]
[Source "ChessBase"]
[SourceQuality "1"]
[TimeControl "40/5400+30:1800+30"]

1. e4 {[%emt 0:00:39]} e5 {[%emt 0:00:36]} 2. Nf3 {[%emt 0:00:13]} Nc6 {[%emt 0:00:10]} 3. Bb5 {[%emt 0:00:24]} a6 {[%emt 0:00:09]} 4. Ba4 {[%emt 0:00:05]} Nf6 {[%emt 0:00:04]} 5. O-O {[%emt 0:00:27]} Be7 {[%emt 0:00:09]} 6. Re1 {[%emt 0:00:36]} b5 {[%emt 0:02:11]} 7. Bb3 {[%emt 0:00:08]} d6 {[%emt 0:00:03]} 8. c3 {[%emt 0:00:08]} O-O {[%emt 0:00:06]} 9. h3 {[%emt 0:00:34]} a5 {[%emt 0:01:58]} 10. d3 {[%emt 0:02:28]} a4 {[%emt 0:00:37]} 11. Bc2 {[%emt 0:00:07]} Bd7 {[%emt 0:08:52]} 12. Nbd2 {[%emt 0:00:29]} Re8 {[%emt 0:03:24]} 13. Nf1 {[%emt 0:01:23]} h6 {[%emt 0:00:56]} 14. Ne3 {[%emt 0:09:13]} Bf8 {[%emt 0:01:32]} 15. Nh2 {[%emt 0:03:27]} Ne7 {[%emt 0:04:45]} 16. Nhg4 {[%emt 0:01:47]} Ng6 {[%emt 0:00:31]} 17. g3 {[%emt 0:07:37]} Nh7 {[%emt 0:13:20]} 18. h4 {[%emt 0:17:14]} Nf6 {[%emt 0:03:31]} 19. h5 {[%emt 0:16:41]} Nxg4 {[%emt 0:01:22]} 20. hxg6 {[%emt 0:00:34]} h5 {[%emt 0:20:11]} 21. gxf7+ {[%emt 0:03:24]} Kxf7 {[%emt 0:00:06]} 22. d4 {[%emt 0:05:50]} 1/2-1/2

[Event "Reykjavik Open 2022"]
[Site "Reykjavik"]
[Date "2022.04.09"]
[Round "5.21"]
[White "Willow, Jonah B"]
[Black "Popvasilev, Kaloyan"]
[Result "1/2-1/2"]
[ECO "B67"]
[WhiteElo "2365"]
[BlackElo "2191"]
[Annotator "TA"]
[PlyCount "255"]
[EventDate "2022.04.06"]
[EventCountry "ISL"]
[SourceTitle "playchess.com"]
[Source "ChessBase"]
[SourceQuality "1"]
[TimeControl "40/5400+30:1800+30"]

{[%evp 40,254,125,79,155,185,187,126,118,149,145,126,131,141,85,108,154,104,172,27,28,25,20,24,40,0,0,0,0,0,0,0,0,0,0,0,0,0,0,0,0,0,0,0,36,0,0,0,0,0,0,0,0,0,0,0,0,0,0,0,0,0,0,0,0,-8,87,87,87,87,87,87,127,127,120,120,118,15,15,16,24,0,0,0,10,7,10,10,10,10,10,10,10,10,10,10,10,0,0,0,9,9,9,9,10,10,10,10,10,10,10,10,10,10,10,10,10,10,10,10,10,10,10,10,10,0,0,0,0,0,0,0,0,0,0,0,0,0,0,0,0,0,0,0,0,0,0,0,0,0,0,0,0,0,0,0,0,0,0,0,0,0,0,0,0,0,0,0,0,0,0,0,0,0,0,0,0,0,0,0,0,0,0,0,0,0,0,0,0,0,0,0,0,0,0,0,0,0,0,0,0,0,0,0,0,0,0,0,0,0,0,0,0,0,0,0,0]} 1. e4 {[%emt 0:00:14]} c5 {[%emt 0:00:06]} 2. Nf3 {[%emt 0:00:25]} d6 {[%emt 0:00:12]} 3. d4 {[%emt 0:00:25]} Nf6 {[%emt 0:00:13]} 4. Nc3 {[%emt 0:00:05]} cxd4 {[%emt 0:00:12]} 5. Nxd4 {[%emt 0:00:17]} Nc6 {[%emt 0:00:16]} 6. Bg5 {[%emt 0:00:07]} e6 {[%emt 0:00:25]} 7. Qd2 {[%emt 0:00:05]} a6 {[%emt 0:00:20]} 8. O-O-O {[%emt 0:00:13]} Bd7 {[%emt 0:00:19]} 9. f4 {[%emt 0:00:11]} b5 {[%emt 0:00:27]} 10. Bxf6 {[%emt 0:00:22]} gxf6 {[%emt 0:00:49]} 11. Kb1 {[%emt 0:00:07]} Qb6 {[%emt 0:02:14]} 12. Nxc6 {[%emt 0:00:22]} Bxc6 {[%emt 0:00:46]} 13. Qe1 {[%emt 0:00:07]} O-O-O {[%emt 0:17:17]} 14. Bd3 {[%emt 0:00:58]} h5 {[%emt 0:19:48]} 15. f5 {[%emt 0:00:21]} b4 {[%emt 0:01:29]} 16. Ne2 {[%emt 0:00:41]} e5 {[%emt 0:08:34]} 17. Qh4 {[%emt 0:03:16]} Be7 {[%emt 0:01:15]} 18. Bc4 {[%emt 0:08:25]} Rdg8 {[%emt 0:02:02]} 19. Ng3 {[%emt 0:01:23]} Rg4 {[%emt 0:15:25]} 20. Qh3 {[%emt 0:00:06]} Qe3 {[%emt 0:03:15]} 21. Be2 {[%emt 0:03:00]} (21. Bxf7 Kb8 $14) ({Better is} 21. Bxa6+ Kc7 22. Bd3) 21... Rxg3 {[%emt 0:07:47]} (21... Rxe4 $142 22. Nxe4 (22. Bxa6+ Kc7 $16) 22... Qxh3 23. gxh3 (23. Bxa6+ Kc7 $16) 23... Bxe4) 22. Bxa6+ $16 {[%emt 0:00:27]} Kc7 {[%emt 0:00:07]} 23. Qxg3 {[%emt 0:01:00]} (23. hxg3 $18 Qxe4 24. Rhe1) 23... Qxg3 $16 {[%emt 0:00:52]} 24. hxg3 {[%emt 0:00:04]} Bxe4 {[%emt 0:00:08]} 25. g4 {[%emt 0:03:37]} Ra8 {[%emt 0:10:23]} 26. Bd3 {[%emt 0:02:23]} Bxg2 {[%emt 0:00:31]} 27. Rxh5 {[%emt 0:00:15]} d5 {[%emt 0:02:56]} ({Black should try} 27... Bf3 28. Re1 (28. Rg1 Bd5 $16) 28... Rg8) 28. Rh7 {[%emt 0:01:19]} (28. Rh2 $142 $1 {[%cal Rh2g2]} Bf3 29. Be2 Bxe2 30. Rxe2) 28... Bf3 {[%emt 0:01:03]} (28... Rf8 $16 29. Rh2 Bf3) 29. Rg1 {[%emt 0:05:34]} (29. Rxf7 Bxd1 30. Rxe7+ Kd6 31. Re6+ Kc5 $17) (29. Re1 $18) 29... Rf8 $11 {[%emt 0:01:10]} 30. Re1 {[%emt 0:07:56]} Bc5 {[%emt 0:01:03]} 31. Be2 {[%emt 0:00:55]} e4 $1 {[%emt 0:03:42]} 32. Bxf3 {[%emt 0:07:56]} exf3 {[%emt 0:00:02]} 33. Rf1 {[%emt 0:00:06]} f2 {[%emt 0:00:05]} 34. Kc1 {[%emt 0:00:04]} Kd6 {[%emt 0:00:10]} 35. Kd2 {[%emt 0:00:23]} Ke5 {[%emt 0:00:28]} 36. Ke2 {[%emt 0:00:42]} Kf4 {[%emt 0:00:35]} 37. Rd1 {[%emt 0:00:45]} Kg3 {[%emt 0:01:45]} 38. Kf1 {[%emt 0:03:01]} (38. Rxd5 Re8+) 38... Re8 {[%emt 0:00:08]} 39. a4 {[%emt 0:05:53]} bxa3 {[%emt 0:00:17]} (39... b3 $5 40. c3 (40. cxb3 $2 Re3 $19) (40. Rxf7 bxc2 41. Rd3+ Kf4 42. Kg2 f1=B+ 43. Kxf1 c1=Q+) 40... Kxg4 $14) 40. bxa3 {[%emt 0:00:00]} Be3 {[%emt 0:00:00]} 41. Rxd5 {[%emt 0:15:44]} (41. Rxf7 Bd2 $1 {[%mdl 512]}) 41... Kxg4 {[%emt 0:22:10]} (41... Bd4 $5 42. Rh3+ Kxh3 43. Rxd4 Kg3 44. Rd3+ Kxg4 $11) 42. Rh1 {[%emt 0:10:27]} (42. Rxf7 Rh8 43. Ke2 f1=Q+ 44. Kxe3 (44. Kxf1 $2 Kf3) 44... Qf4+ 45. Ke2 Qf3+ 46. Kd2 Rh2+ 47. Kc1 Qxa3+ 48. Kb1 Rh1+) 42... Bb6 {[%emt 0:02:38]} 43. Kg2 {[%emt 0:02:33]} Rg8 {[%emt 0:01:00]} ({Don't play} 43... Re1 44. Rf1 $16) 44. Rdd1 {[%emt 0:03:13]} Kf4+ {[%emt 0:01:41]} 45. Kf1 {[%emt 0:00:21]} Rg3 {[%emt 0:02:58]} ({Don't take} 45... Rg1+ 46. Ke2 $14) 46. Ke2 {[%emt 0:02:56]} Rxa3 {[%emt 0:00:24]} 47. Rd3 {[%emt 0:01:02]} Ra7 {[%emt 0:00:45]} 48. Rb1 {[%emt 0:03:48]} Re7+ {[%emt 0:00:10]} 49. Kf1 {[%emt 0:00:05]} Bc5 {[%emt 0:01:11]} 50. Rd5 {[%emt 0:05:13]} Ba7 {[%emt 0:00:27]} 51. c4 {[%emt 0:10:47]} Be3 {[%emt 0:00:36]} 52. c5 {[%emt 0:00:45]} Kf3 {[%emt 0:01:02] [#]} (52... Re8 $11) 53. Rd3 $1 $16 {[%emt 0:02:21]} Ke4 {[%emt 0:00:46]} 54. Rc3 {[%emt 0:01:41]} Bd4 {[%emt 0:00:50]} 55. Rcc1 {[%emt 0:00:54]} Kd5 {[%emt 0:00:40]} 56. c6 {[%emt 0:00:32]} Rc7 {[%emt 0:01:45]} 57. Rb5+ {[%emt 0:03:04]} Kd6 {[%emt 0:00:03] [#]} 58. Rc4 {[%emt 0:00:14]} (58. Rb8 $1 $16 {[%cal Rb8d8] And now Rd8+ would win.} Bc5 59. Rb2) 58... Be3 $1 $11 {[%emt 0:00:18]} 59. Rb3 {[%emt 0:01:30]} Bc5 $1 {[%emt 0:00:09]} 60. Rb7 {[%emt 0:03:26]} Rxc6 {[%emt 0:00:04]} 61. Rxf7 {[%emt 0:00:04]} Kd5 {[%emt 0:00:52]} 62. Rc1 {[%emt 0:00:18]} Bd4 {[%emt 0:01:37]} 63. Rd7+ {[%emt 0:01:00]} Rd6 {[%emt 0:00:19]} 64. Re7 {[%emt 0:00:24]} Rd8 {[%emt 0:00:56]} 65. Rd1 {[%emt 0:00:23]} Kc4 {[%emt 0:00:30]} 66. Rc7+ {[%emt 0:00:12]} Kd5 {[%emt 0:00:03]} 67. Rh7 {[%emt 0:04:18]} Ke5 {[%emt 0:00:17]} 68. Re7+ {[%emt 0:00:58]} Kxf5 {[%emt 0:00:11]} 69. Re2 {[%emt 0:00:23]} Bb6 {[%emt 0:00:53]} 70. Rxd8 {[%emt 0:00:11]} Bxd8 {[%emt 0:00:03]} 71. Kxf2 {[%emt 0:00:05]} Bc7 {[%emt 0:00:08]} 72. Kf3 {[%emt 0:00:04]} Be5 {[%emt 0:00:11]} 73. Ra2 {[%emt 0:00:05]} Bd6 {[%emt 0:00:07]} 74. Ra5+ {[%emt 0:00:04]} Be5 {[%emt 0:01:04]} 75. Rb5 {[%emt 0:00:04]} Ke6 {[%emt 0:00:06]} 76. Ke4 {[%emt 0:00:12]} Kd6 {[%emt 0:00:22]} 77. Rb6+ {[%emt 0:00:03]} Kc7 {[%emt 0:00:51]} 78. Ra6 {[%emt 0:00:11]} Kb7 {[%emt 0:00:04]} 79. Re6 {[%emt 0:00:05]} Ka8 {[%emt 0:01:22]} 80. Kd5 {[%emt 0:00:10]} Kb7 {[%emt 0:00:09]} 81. Kc5 {[%emt 0:00:15]} Ka8 {[%emt 0:00:24]} 82. Kb6 {[%emt 0:00:10]} Bd4+ {[%emt 0:00:18]} 83. Ka6 {[%emt 0:00:20]} Ba7 {[%emt 0:00:24]} 84. Re8+ {[%emt 0:00:52]} Bb8 {[%emt 0:00:04]} 85. Kb6 {[%emt 0:00:19]} f5 {[%emt 0:00:07]} 86. Rf8 {[%emt 0:01:10]} f4 {[%emt 0:00:05]} 87. Kc6 {[%emt 0:00:07]} f3 {[%emt 0:00:44]} 88. Kb6 {[%emt 0:00:40]} f2 {[%emt 0:00:07]} 89. Kc6 {[%emt 0:00:10]} f1=Q {[%emt 0:00:39]} 90. Rxf1 {[%emt 0:00:03]} Ba7 {[%emt 0:00:14]} 91. Rf7 {[%emt 0:00:22]} Bb8 {[%emt 0:00:18]} 92. Kb6 {[%emt 0:00:14]} Bg3 {[%emt 0:01:28]} 93. Rf3 {[%emt 0:01:07]} Bh2 {[%emt 0:00:31]} 94. Rf1 {[%emt 0:00:25]} Bg3 {[%emt 0:00:24]} 95. Rf5 {[%emt 0:00:48]} Bh2 {[%emt 0:00:22]} 96. Rh5 {[%emt 0:00:54]} Bg1+ {[%emt 0:00:07]} 97. Kc7 {[%emt 0:00:02]} Bf2 {[%emt 0:00:36]} 98. Rh3 {[%emt 0:00:46]} Bg1 {[%emt 0:00:18]} 99. Rh8+ {[%emt 0:01:44]} Ka7 {[%emt 0:00:06]} 100. Rh1 {[%emt 0:00:03]} Bb6+ {[%emt 0:00:10]} 101. Kc6 {[%emt 0:00:15]} Bf2 {[%emt 0:00:17]} 102. Rh2 {[%emt 0:01:58]} Be3 {[%emt 0:01:21]} 103. Rh8 {[%emt 0:00:34]} Bf2 {[%emt 0:00:14]} 104. Re8 {[%emt 0:00:50]} Bg1 {[%emt 0:00:20]} 105. Rf8 {[%emt 0:00:02]} Be3 {[%emt 0:00:10]} 106. Rf7+ {[%emt 0:00:26]} Ka8 {[%emt 0:00:15]} 107. Kc7 {[%emt 0:00:33]} Bg1 {[%emt 0:00:16]} 108. Rf1 {[%emt 0:01:19]} Bh2+ {[%emt 0:00:34]} 109. Kb6 {[%emt 0:00:11]} Bg3 {[%emt 0:00:07]} 110. Rf3 {[%emt 0:01:00]} Bh2 {[%emt 0:00:07]} 111. Rh3 {[%emt 0:02:39]} Bg1+ {[%emt 0:00:06]} 112. Kc7 {[%emt 0:00:24]} Bf2 {[%emt 0:00:06]} 113. Kc6 {[%emt 0:00:11]} Bg1 {[%emt 0:00:07]} 114. Rg3 {[%emt 0:00:29]} Bf2 {[%emt 0:00:09]} 115. Rg2 {[%emt 0:00:17]} Be3 {[%emt 0:00:05]} 116. Rg4 {[%emt 0:00:04]} Bf2 {[%emt 0:00:07]} 117. Rg2 {[%emt 0:00:35]} Be3 {[%emt 0:00:04]} 118. Re2 {[%emt 0:00:02]} Bg1 {[%emt 0:00:06]} 119. Kc7 {[%emt 0:00:07]} Bd4 {[%emt 0:00:10]} 120. Re8+ {[%emt 0:01:05]} Ka7 {[%emt 0:00:06]} 121. Re4 {[%emt 0:00:06]} Bb6+ {[%emt 0:00:07]} 122. Kc6 {[%emt 0:00:06]} Bg1 {[%emt 0:00:06]} 123. Rg4 {[%emt 0:00:48]} Bf2 {[%emt 0:00:14]} 124. Rg7+ {[%emt 0:00:31]} Ka8 {[%emt 0:00:05]} 125. Kc7 {[%emt 0:00:15]} Be3 {[%emt 0:00:11]} 126. Rg4 {[%emt 0:00:26]} Bf2 {[%emt 0:00:13]} 127. Ra4+ {[%emt 0:03:30]} Ba7 {[%emt 0:00:06]} 128. Kc8 {[%emt 0:00:02]} 1/2-1/2

[Event "Reykjavik Open 2022"]
[Site "Reykjavik"]
[Date "2022.04.09"]
[Round "5.22"]
[White "Villiers, Thomas"]
[Black "Korley, Kassa"]
[Result "0-1"]
[ECO "C01"]
[WhiteElo "2202"]
[BlackElo "2399"]
[Annotator "TA"]
[PlyCount "116"]
[EventDate "2022.04.06"]
[EventCountry "ISL"]
[SourceTitle "playchess.com"]
[Source "ChessBase"]
[SourceQuality "1"]
[TimeControl "40/5400+30:1800+30"]

{[%evp 10,116,0,0,3,14,0,-8,14,9,44,15,7,-14,15,18,25,0,13,-22,-19,-26,-26,-26,-29,-71,-58,-70,-45,-55,-49,-54,-44,-53,-26,-22,-12,-39,-9,-50,0,-42,-38,-83,-87,-100,-91,-95,-100,-99,-49,-56,-61,-63,0,-58,-23,-17,-29,-43,-8,-8,-9,-15,-11,-18,0,0,0,-48,-19,-47,-60,-87,-83,-87,-85,-87,-76,-86,-80,-74,-79,-77,-83,-85,-78,-64,-73,-185,-184,-170,-177,-199,-197,-283,-270,-356,-352,-402,-381,-462,-477,-882,-842,-844,-800,-791,-683]} 1. e4 {[%emt 0:00:06]} e6 {[%emt 0:00:07]} 2. d4 {[%emt 0:00:31]} d5 {[%emt 0:00:03]} 3. Nc3 {[%emt 0:00:17]} Bb4 {[%emt 0:00:07]} 4. exd5 {[%emt 0:02:52]} exd5 {[%emt 0:00:10]} 5. a3 {[%emt 0:01:43]} Bxc3+ {[%emt 0:02:03]} 6. bxc3 {[%emt 0:04:13]} Nf6 {[%emt 0:00:14] C01: French: Exchange Variation.} 7. Bd3 {[%emt 0:00:27]} O-O {[%emt 0:00:30]} 8. Ne2 {[%emt 0:01:11]} b6 {[%emt 0:19:18] The position is equal.} 9. O-O {[%emt 0:02:38]} Ba6 {[%emt 0:05:58] [#]} 10. Bxa6 $146 {[%emt 0:06:41]} (10. Ng3 {is interesting.} Re8 11. Qf3 Ne4 12. Nh5) ({Predecessor:} 10. Ng3 Bxd3 11. cxd3 Nbd7 12. Qf3 Re8 13. Nf5 Re6 14. Bg5 Qf8 15. Qg3 c6 16. Bh6 {1-0 (42) Mammadova,G (2360)-Shahaliyev,I (2421) Baku 2019}) 10... Nxa6 {[%emt 0:00:04][%cal Bb8a6,Ba6c5,Bc5d7,Bd7f6][%mdl 32]} 11. Qd3 {[%emt 0:00:16]} Qc8 {[%emt 0:03:25]} 12. Ng3 {[%emt 0:01:05]} Re8 {[%emt 0:11:36]} 13. Bf4 {[%emt 0:01:04]} (13. f3 $5 {[%cal Rc1g5]}) 13... Qg4 {[%emt 0:06:14]} 14. Be5 {[%emt 0:00:52] [#]} Nc5 {[%emt 0:00:04]} 15. Qb5 {[%emt 0:04:01] [#] Black must now prevent Bxf6.} (15. Qf5 Ncd7) 15... Qd7 $1 {[%emt 0:02:11]} 16. Qxd7 {[%emt 0:07:56]} Ncxd7 {[%emt 0:05:33]} 17. Bxf6 {[%emt 0:01:51]} Nxf6 {[%emt 0:00:09]} 18. Rfe1 {[%emt 0:01:25]} g6 {[%emt 0:01:29]} 19. f3 {[%emt 0:00:33]} Kf8 {[%emt 0:00:46]} 20. Kf2 {[%emt 0:00:55]} Rad8 {[%emt 0:00:26]} 21. Nf1 {[%emt 0:02:51]} Rd6 {[%emt 0:02:29]} 22. Rxe8+ {[%emt 0:01:55]} Kxe8 $11 {[%emt 0:00:20][%mdl 4096] Endgame KRN-KRN} 23. Ke2 {[%emt 0:00:51]} h5 {[%emt 0:01:54]} 24. h4 {[%emt 0:05:11]} Nd7 {[%emt 0:06:20]} ({Better is} 24... b5 $15) 25. Nd2 {[%emt 0:07:53]} Nf8 {[%emt 0:01:05]} 26. Nb3 {[%emt 0:06:20]} Ne6 $1 {[%emt 0:00:32]} 27. Ke3 {[%emt 0:00:30] Inhibits Nf4.} Ng7 {[%emt 0:06:43]} 28. g4 {[%emt 0:01:52] Prevents Nf5+.} Re6+ {[%emt 0:06:51]} 29. Kd2 {[%emt 0:01:04]} Kd7 {[%emt 0:01:57]} ({Black should try} 29... hxg4 $17 30. fxg4 f5) 30. Rg1 {[%emt 0:01:22]} Rf6 {[%emt 0:04:55]} 31. Ke3 {[%emt 0:00:20]} Re6+ {[%emt 0:00:02]} 32. Kd2 $1 {[%emt 0:00:11]} Re8 {[%emt 0:00:10] Black wants to play ...Rh8.} 33. Nc1 {[%emt 0:00:38]} Rh8 {[%emt 0:01:33]} 34. Rh1 {[%emt 0:00:55]} Ne8 {[%emt 0:04:15] And now ...hxg4 would win.} 35. Nd3 {[%emt 0:00:31]} Nd6 {[%emt 0:00:36]} 36. Ne5+ {[%emt 0:01:45]} Ke6 {[%emt 0:01:13]} 37. Kd3 {[%emt 0:20:01]} b5 {[%emt 0:01:22]} 38. Re1 {[%emt 0:02:11]} Kf6 {[%emt 0:00:06]} 39. g5+ {[%emt 0:00:15]} (39. gxh5 $11 Rxh5 40. Ng4+ Kg7 41. Re7) 39... Kg7 {[%emt 0:01:41]} 40. Nc6 {[%emt 0:00:00]} Nf5 {[%emt 0:00:00] Inhibits Re7.} 41. Rh1 {[%emt 0:11:59] [#]} Ra8 $1 {[%emt 0:11:35]} 42. Nb4 {[%emt 0:06:47]} Ne7 {[%emt 0:01:33] Threatens to win with ...a5.} 43. Re1 {[%emt 0:01:30]} Kf8 {[%emt 0:00:14]} 44. Na6 {[%emt 0:05:16]} c6 {[%emt 0:04:12]} 45. Nc5 {[%emt 0:00:06]} Nf5 {[%emt 0:00:52]} 46. Nd7+ {[%emt 0:00:11]} Kg7 {[%emt 0:00:08]} 47. Rh1 {[%emt 0:00:19]} Re8 {[%emt 0:04:26] aiming for ...Re3+.} 48. Ne5 {[%emt 0:00:12][%cal Oa3a4]} c5 {[%emt 0:00:11]} 49. Rh3 {[%emt 0:03:28]} (49. Nc6 $17) 49... Re6 $19 {[%emt 0:00:38]} 50. Rh1 {[%emt 0:03:08] [#]} cxd4 $1 {[%emt 0:00:44]} 51. cxd4 {[%emt 0:00:37]} Ra6 {[%emt 0:00:05]} 52. Kc3 {[%emt 0:01:00]} (52. Ra1 $142) 52... Ra4 {[%emt 0:01:46]} (52... Rxa3+ $2 53. Kb4 Ra4+ 54. Kxb5 Rxd4 55. c3 Rxh4 56. Ra1 $19) 53. Rb1 {[%emt 0:01:08]} a6 {[%emt 0:00:26]} ({Inferior is} 53... Rxd4 54. Rxb5 Rf4 55. Rxd5 $17) ({But not} 53... Nxd4 $2 54. f4 $19) (53... Rxa3+ 54. Kb4 Ra4+ 55. Kxb5 Rxd4 56. Kc6 $17) ({And not} 53... Nxh4 54. Rxb5 a5 55. Kd3 $11) 54. Re1 {[%emt 0:00:42]} Rxa3+ {[%emt 0:04:21]} 55. Kb4 {[%emt 0:00:20]} Nxd4 {[%emt 0:01:12] Black is clearly winning.} 56. Kc5 {[%emt 0:01:23]} (56. Rc1 $142 Ra4+ 57. Kc5) 56... Nxf3 {[%emt 0:00:27]} 57. Nxf3 {[%emt 0:00:16]} Rxf3 {[%emt 0:00:04]} 58. Kxd5 {[%emt 0:00:10]} Rf4 {[%emt 0:00:29] Weighted Error Value: White=0.25 (precise) /Black=0.10 (very precise)} 0-1

[Event "Reykjavik Open 2022"]
[Site "Reykjavik"]
[Date "2022.04.09"]
[Round "5.23"]
[White "Louis, Thibault"]
[Black "Tania, Sachdev"]
[Result "0-1"]
[ECO "C78"]
[WhiteElo "2181"]
[BlackElo "2392"]
[Annotator "TA"]
[PlyCount "104"]
[EventDate "2022.04.06"]
[EventCountry "ISL"]
[SourceTitle "playchess.com"]
[Source "ChessBase"]
[SourceQuality "1"]
[TimeControl "40/5400+30:1800+30"]

{[%evp 19,104,0,0,0,0,0,0,0,0,0,0,0,0,0,0,0,0,-77,60,-55,-18,-43,-35,-35,-35,-52,-18,-72,-74,-77,-82,-68,-71,-74,-74,-108,-102,-138,-127,-144,-95,-171,-161,-175,-169,-168,-118,-169,-169,-164,-134,-140,-130,-146,-85,-194,-193,-189,-75,-79,-63,-171,-163,-266,-251,-250,-247,-502,-499,-483,-471,-440,-439,-412,-406,-733,-731,-662,-658,-804,-562,-804,-804,-742,-729,-29979,-29980]} 1. e4 {[%emt 0:00:16]} e5 {[%emt 0:00:07]} 2. Nf3 {[%emt 0:00:26]} Nc6 {[%emt 0:00:04]} 3. Bb5 {[%emt 0:01:22]} a6 {[%emt 0:00:11]} 4. Ba4 {[%emt 0:00:16]} Nf6 {[%emt 0:00:22]} 5. O-O {[%emt 0:00:42]} b5 {[%emt 0:00:28]} 6. Bb3 {[%emt 0:00:08]} Bb7 {[%emt 0:00:03]} 7. d4 {[%emt 0:16:39]} Nxd4 {[%emt 0:01:37]} 8. Nxd4 {[%emt 0:01:35]} exd4 {[%emt 0:02:53]} 9. e5 {[%emt 0:00:31]} Ne4 {[%emt 0:01:19]} 10. c3 {[%emt 0:09:53]} d3 {[%emt 0:07:21]} 11. Qxd3 {[%emt 0:06:25] C78: Ruy Lopez: Archangelsk and Möller Defences.} Nc5 {[%emt 0:02:48]} 12. Qg3 {[%emt 0:04:13]} Nxb3 {[%emt 0:00:47]} 13. axb3 {[%emt 0:00:36] The position is equal.} Qe7 {[%emt 0:02:02] [#]} 14. Nd2 $146 {[%emt 0:10:55][%cal Bb1d2,Bd2f3,Bf3d4][%mdl 32]} ({Predecessor:} 14. c4 Qe6 15. Na3 Qg6 16. Qxg6 hxg6 17. Be3 Bxa3 18. Rxa3 Ke7 19. Ra5 {½-½ (19) Jurcik,M (2319)-Chovan,M (2292) Slovakia 2018}) 14... Qe6 {[%emt 0:05:49]} 15. b4 {[%emt 0:07:38]} O-O-O {[%emt 0:18:27][%cal Og7g5]} 16. Nf3 {[%emt 0:02:38]} h6 {[%emt 0:05:09]} 17. Nd4 {[%emt 0:02:21]} Qd5 {[%emt 0:01:13]} 18. f4 {[%emt 0:00:33] Prevents g5.} (18. Be3 $11) 18... d6 {[%emt 0:10:26]} (18... Bxb4 $1 $17 {[%cal Of7f6]} 19. Be3 Bc5) 19. Qf3 {[%emt 0:01:51]} (19. Be3 $14) 19... dxe5 {[%emt 0:13:44]} (19... Qxd4+ $5 20. cxd4 Bxf3 21. Rxf3 Kb7 $11) 20. Qxd5 {[%emt 0:01:39][%mdl 64] Remove Defender} Bxd5 {[%emt 0:02:12]} 21. fxe5 {[%emt 0:00:14]} Kb7 {[%emt 0:00:02]} 22. Bf4 {[%emt 0:04:56]} g6 {[%emt 0:03:43]} 23. Ra3 {[%emt 0:07:44]} (23. e6 $11 {remains equal.}) 23... c5 {[%emt 0:01:14]} (23... Bc4 {is interesting.} 24. Rfa1 Bxb4 25. Rxa6 Bc5) 24. bxc5 {[%emt 0:00:15]} Bxc5 {[%emt 0:00:07][%cal Bf8c5,Bc5b6,Bb6c7][%mdl 32]} 25. b4 {[%emt 0:00:06]} Bb6 {[%emt 0:01:05]} 26. Rfa1 {[%emt 0:00:44]} Ra8 {[%emt 0:07:37]} 27. Kf1 {[%emt 0:07:06]} Bc4+ {[%emt 0:00:47]} 28. Ke1 {[%emt 0:00:53]} Rhe8 {[%emt 0:00:34]} 29. Kd2 {[%emt 0:04:04]} Bc7 {[%emt 0:02:12]} ({Black should play} 29... g5 30. Bg3 Red8) 30. Bxh6 {[%emt 0:01:18]} (30. Re1 $17) 30... Bxe5 $19 {[%emt 0:00:09]} 31. Nf3 {[%emt 0:04:22]} Bc7 {[%emt 0:06:59] Hoping for ...Re2+. A strong pair of Bishops.} 32. Be3 {[%emt 0:00:48]} Bd5 {[%emt 0:00:32]} (32... a5 $19 33. bxa5 Rad8+ 34. Nd4 Bxh2) 33. Rf1 {[%emt 0:01:50]} (33. Bg5 $17 {was called for.}) 33... Rad8 $1 {[%emt 0:01:36]} 34. Bd4 {[%emt 0:00:18]} Bf4+ {[%emt 0:01:50]} 35. Kd1 {[%emt 0:00:14]} Rd7 {[%emt 0:01:01]} 36. g3 {[%emt 0:01:49]} Bc7 {[%emt 0:00:28] &Nero is more active.} ({Inferior is} 36... Bc4 37. Re1 Rxe1+ 38. Nxe1 $17) ({Black should try} 36... Bh6 {Strongly threatening ...Rde7.} 37. g4 Re4) 37. Kd2 {[%emt 0:00:51] [#]} (37. Nd2 $17 {was worth a try.}) 37... Rde7 $1 {[%emt 0:00:35]} 38. Ng1 {[%emt 0:00:31]} f5 {[%emt 0:00:24]} (38... Bc4 $19 {is more deadly.} 39. Rf6 Re6 40. Rxe6 fxe6) 39. Raa1 $17 {[%emt 0:00:20]} Bc4 {[%emt 0:00:58]} 40. Rfe1 {[%emt 0:00:00]} (40. Rf2 $15) 40... f4 $36 {[%emt 0:00:00][%mdl 2048] Black has strong initiative.} 41. g4 {[%emt 0:14:09] [#]} (41. Rxe7 {keeps fighting.} Rxe7 42. Re1) 41... f3 $1 {[%emt 0:05:40] The board is on fire.} 42. Rxe7 {[%emt 0:01:49]} Rxe7 {[%emt 0:00:11]} 43. Nxf3 {[%emt 0:09:16]} (43. Be3) 43... Bf4+ {[%emt 0:00:21]} 44. Kc2 {[%emt 0:02:00]} Re2+ {[%emt 0:01:49]} 45. Kd1 {[%emt 0:00:00]} Rg2 {[%emt 0:02:34]} 46. Ke1 {[%emt 0:00:00]} Bd5 {[%emt 0:03:36]} 47. Ng1 {[%emt 0:03:06]} (47. Nh4 $142 Rxg4 48. Bf2) 47... Bd2+ {[%emt 0:01:31]} 48. Kf1 {[%emt 0:00:08]} Rxh2 {[%emt 0:00:14]} 49. Bf2 {[%emt 0:00:53]} Bc4+ {[%emt 0:01:23]} 50. Ne2 {[%emt 0:00:07] [#]} Be3 $1 {[%emt 0:01:38][%mdl 512]} 51. Bxe3 {[%emt 0:00:30]} Rxe2 {[%emt 0:00:03]} 52. Re1 {[%emt 0:00:27]} Rxe3+ $1 {[%emt 0:00:03] Weighted Error Value: White=0.59/Black=0.14 (very precise)} 0-1